[Event "Titled Tuesday Blitz May 25 2021"]
[White "Onyshchuk, Volodymyr"]
[Black "Girsh, Daniel"]
[WhiteFideId "14114038"]
[BlackFideId "30949190"]
[WhiteElo "2605"]
[BlackElo "2425"]
[Result "1-0"]
[Round "01"]
[TimeControl "180+1"]
[Date "2021.05.25"]
[WhiteClock "0:00:15"]
[BlackClock "0:00:08"]

1. e4 {[%clk 0:02:58]}  c5 {[%clk 0:02:59]} 2. Ne2 {[%clk 0:02:54]}  d6 {[%clk 0:03:00]} 3. g3 {[%clk 0:02:52]}  Nc6 {[%clk 0:02:58]} 4. Bg2 {[%clk 0:02:52]}  Nf6 {[%clk 0:02:59]} 5. c3 {[%clk 0:02:51]}  g6 {[%clk 0:02:59]} 6. d4 {[%clk 0:02:51]}  Bg7 {[%clk 0:02:57]} 7. d5 {[%clk 0:02:51]}  Nb8 {[%clk 0:02:51]} 8. a4 {[%clk 0:02:49]}  O-O {[%clk 0:02:52]} 9. Na3 {[%clk 0:02:49]}  e6 {[%clk 0:02:52]} 10. O-O {[%clk 0:02:40]}  exd5 {[%clk 0:02:52]} 11. exd5 {[%clk 0:02:39]}  Re8 {[%clk 0:02:52]} 12. Nc4 {[%clk 0:02:36]}  Bf5 {[%clk 0:02:49]} 13. Nf4 {[%clk 0:02:27]}  Qc7 {[%clk 0:02:44]} 14. h3 {[%clk 0:02:26]}  Be4 {[%clk 0:02:31]} 15. f3 {[%clk 0:02:19]}  Bf5 {[%clk 0:02:31]} 16. g4 {[%clk 0:02:19]}  Bc8 {[%clk 0:02:29]} 17. Qd3 {[%clk 0:01:42]}  Nfd7 {[%clk 0:02:27]} 18. Bd2 {[%clk 0:01:39]}  b6 {[%clk 0:02:26]} 19. Rae1 {[%clk 0:01:38]}  Ne5 {[%clk 0:02:26]} 20. Nxe5 {[%clk 0:01:34]}  Rxe5 {[%clk 0:02:24]} 21. Rxe5 {[%clk 0:01:32]}  Bxe5 {[%clk 0:02:23]} 22. Ne2 {[%clk 0:01:31]}  Ba6 {[%clk 0:02:22]} 23. c4 {[%clk 0:01:31]}  Bxb2 {[%clk 0:02:19]} 24. Nc3 {[%clk 0:01:28]}  Nd7 {[%clk 0:02:15]} 25. f4 {[%clk 0:01:27]}  Re8 {[%clk 0:02:14]} 26. Rb1 {[%clk 0:01:26]}  Bxc3 {[%clk 0:02:14]} 27. Bxc3 {[%clk 0:01:26]}  Qd8 {[%clk 0:02:05]} 28. Bf1 {[%clk 0:01:21]}  Qh4 {[%clk 0:01:54]} 29. a5 {[%clk 0:01:19]}  bxa5 {[%clk 0:01:36]} 30. Bxa5 {[%clk 0:01:03]}  Nf6 {[%clk 0:01:36]} 31. Ra1 {[%clk 0:00:58]}  Ne4 {[%clk 0:01:32]} 32. Be1 {[%clk 0:00:57]}  Qf6 {[%clk 0:01:08]} 33. Rxa6 {[%clk 0:00:56]}  Qxf4 {[%clk 0:01:06]} 34. Bg2 {[%clk 0:00:56]}  Ng5 {[%clk 0:01:04]} 35. Bd2 {[%clk 0:00:49]}  Qf6 {[%clk 0:00:46]} 36. h4 {[%clk 0:00:43]}  Ne4 {[%clk 0:00:33]} 37. Bxe4 {[%clk 0:00:42]}  Qxh4 {[%clk 0:00:33]} 38. Qf3 {[%clk 0:00:38]}  h5 {[%clk 0:00:17]} 39. Rxa7 {[%clk 0:00:37]}  Rf8 {[%clk 0:00:16]} 40. gxh5 {[%clk 0:00:36]}  f5 {[%clk 0:00:16]} 41. Bd3 {[%clk 0:00:33]}  Rb8 {[%clk 0:00:13]} 42. hxg6 {[%clk 0:00:29]}  Rb3 {[%clk 0:00:12]} 43. g7 {[%clk 0:00:23]}  Qd4+ {[%clk 0:00:10]} 44. Be3 {[%clk 0:00:17]}  Qxd3 {[%clk 0:00:10]} 45. Ra8+ {[%clk 0:00:17]}  Kxg7 {[%clk 0:00:10]} 46. Qg3+ {[%clk 0:00:17]}  Kf6 {[%clk 0:00:09]} 47. Qg5+ {[%clk 0:00:17]}  Kf7 {[%clk 0:00:10]} 48. Ra7+ {[%clk 0:00:14]}  Kf8 {[%clk 0:00:08]} 49. Qg7+ {[%clk 0:00:14]}  Ke8 {[%clk 0:00:08]} 50. Qe7# {[%clk 0:00:15]} 1-0


[Site "https://www.chess.com"]

[Event "Titled Tuesday Blitz May 25 2021"]
[White "Pastar, Slaven"]
[Black "Martinez Alcantara, Jose Eduardo"]
[WhiteFideId "14402718"]
[BlackFideId "3805662"]
[WhiteElo "2227"]
[BlackElo "2690"]
[Result "0-1"]
[Round "01"]
[TimeControl "180+1"]
[Date "2021.05.25"]
[WhiteClock "0:00:08"]
[BlackClock "0:00:24"]

1. b4 {[%clk 0:03:00]}  Nf6 {[%clk 0:02:57]} 2. Bb2 {[%clk 0:03:00]}  e6 {[%clk 0:02:56]} 3. a3 {[%clk 0:02:59]}  d5 {[%clk 0:02:54]} 4. e3 {[%clk 0:03:00]}  Bd6 {[%clk 0:02:51]} 5. Nf3 {[%clk 0:03:00]}  O-O {[%clk 0:02:50]} 6. c4 {[%clk 0:03:01]}  c6 {[%clk 0:02:49]} 7. c5 {[%clk 0:02:57]}  Bc7 {[%clk 0:02:47]} 8. Be2 {[%clk 0:02:55]}  Nbd7 {[%clk 0:02:47]} 9. d4 {[%clk 0:02:53]}  Qe7 {[%clk 0:02:46]} 10. Nbd2 {[%clk 0:02:51]}  e5 {[%clk 0:02:42]} 11. dxe5 {[%clk 0:02:50]}  Nxe5 {[%clk 0:02:43]} 12. Nxe5 {[%clk 0:02:50]}  Bxe5 {[%clk 0:02:44]} 13. Bxe5 {[%clk 0:02:49]}  Qxe5 {[%clk 0:02:45]} 14. O-O {[%clk 0:02:49]}  Bf5 {[%clk 0:02:44]} 15. Nf3 {[%clk 0:02:49]}  Qe7 {[%clk 0:02:43]} 16. Nd4 {[%clk 0:02:49]}  Bg6 {[%clk 0:02:39]} 17. Bd3 {[%clk 0:02:49]}  Rac8 {[%clk 0:02:35]} 18. Bxg6 {[%clk 0:02:47]}  hxg6 {[%clk 0:02:33]} 19. Qa4 {[%clk 0:02:44]}  a6 {[%clk 0:02:33]} 20. Qd1 {[%clk 0:02:42]}  Ne4 {[%clk 0:02:32]} 21. Qg4 {[%clk 0:02:26]}  Rfe8 {[%clk 0:02:22]} 22. Ra2 {[%clk 0:02:19]}  Nc3 {[%clk 0:02:10]} 23. Rc2 {[%clk 0:02:15]}  Nb5 {[%clk 0:02:10]} 24. a4 {[%clk 0:02:10]}  Nxd4 {[%clk 0:02:09]} 25. Qxd4 {[%clk 0:02:11]}  Qd7 {[%clk 0:02:05]} 26. Rd2 {[%clk 0:02:06]}  Qf5 {[%clk 0:02:04]} 27. Qd3 {[%clk 0:01:49]}  Re4 {[%clk 0:02:01]} 28. Rb1 {[%clk 0:01:49]}  Rce8 {[%clk 0:01:50]} 29. h3 {[%clk 0:01:34]}  Qg5 {[%clk 0:01:34]} 30. Rc2 {[%clk 0:01:14]}  f5 {[%clk 0:01:16]} 31. Ra2 {[%clk 0:00:57]}  f4 {[%clk 0:01:15]} 32. exf4 {[%clk 0:00:45]}  Qxf4 {[%clk 0:01:15]} 33. g3 {[%clk 0:00:41]}  Qf6 {[%clk 0:00:54]} 34. b5 {[%clk 0:00:31]}  axb5 {[%clk 0:00:44]} 35. axb5 {[%clk 0:00:32]}  Rc4 {[%clk 0:00:44]} 36. bxc6 {[%clk 0:00:29]}  bxc6 {[%clk 0:00:45]} 37. Ra7 {[%clk 0:00:19]}  Rf8 {[%clk 0:00:44]} 38. Qe2 {[%clk 0:00:13]}  Re4 {[%clk 0:00:40]} 39. Qd2 {[%clk 0:00:11]}  Rf7 {[%clk 0:00:25]} 40. Ra8+ {[%clk 0:00:11]}  Kh7 {[%clk 0:00:25]} 41. Rbb8 {[%clk 0:00:09]}  g5 {[%clk 0:00:25]} 42. Rh8+ {[%clk 0:00:09]}  Kg6 {[%clk 0:00:26]} 43. Qd1 {[%clk 0:00:08]}  Qxf2+ {[%clk 0:00:23]} 44. Kh1 {[%clk 0:00:08]}  Re1+ {[%clk 0:00:24]} 0-1


[Site "https://www.chess.com"]

[Event "Titled Tuesday Blitz May 25 2021"]
[White "Polok, Kacper"]
[Black "Mikhailovsky, Vladimir"]
[WhiteFideId "1137158"]
[BlackFideId "34105414"]
[WhiteElo "2196"]
[BlackElo "2308"]
[Result "0-1"]
[Round "01"]
[TimeControl "180+1"]
[Date "2021.05.25"]
[WhiteClock "0:01:14"]
[BlackClock "0:01:07"]

1. e4 {[%clk 0:03:00]}  e5 {[%clk 0:02:56]} 2. Nf3 {[%clk 0:02:59]}  d5 {[%clk 0:02:55]} 3. d4 {[%clk 0:02:47]}  dxe4 {[%clk 0:02:55]} 4. Nxe5 {[%clk 0:02:47]}  Bd6 {[%clk 0:02:56]} 5. Nc4 {[%clk 0:02:43]}  Nf6 {[%clk 0:02:55]} 6. Be3 {[%clk 0:02:40]}  O-O {[%clk 0:02:55]} 7. Nxd6 {[%clk 0:02:40]}  Qxd6 {[%clk 0:02:55]} 8. c4 {[%clk 0:02:39]}  Rd8 {[%clk 0:02:43]} 9. Nc3 {[%clk 0:02:36]}  c5 {[%clk 0:02:39]} 10. dxc5 {[%clk 0:02:32]}  Qe7 {[%clk 0:02:39]} 11. Qc2 {[%clk 0:02:27]}  Na6 {[%clk 0:02:30]} 12. a3 {[%clk 0:02:26]}  Nxc5 {[%clk 0:02:30]} 13. Bxc5 {[%clk 0:02:08]}  Qxc5 {[%clk 0:02:26]} 14. Be2 {[%clk 0:02:09]}  e3 {[%clk 0:02:21]} 15. f3 {[%clk 0:02:01]}  Rd2 {[%clk 0:02:14]} 16. Ne4 {[%clk 0:01:48]}  Nxe4 {[%clk 0:01:49]} 17. Qxe4 {[%clk 0:01:48]}  Bf5 {[%clk 0:01:50]} 18. Qf4 {[%clk 0:01:35]}  Rxb2 {[%clk 0:01:39]} 19. Rd1 {[%clk 0:01:28]}  Bc2 {[%clk 0:01:16]} 20. Qd6 {[%clk 0:01:19]}  Qa5+ {[%clk 0:01:12]} 21. Kf1 {[%clk 0:01:15]}  Bxd1 {[%clk 0:01:11]} 22. Qxd1 {[%clk 0:01:14]}  Rd8 {[%clk 0:01:09]} 23. Qc1 {[%clk 0:01:14]}  Rdd2 {[%clk 0:01:07]} 0-1


[Site "https://www.chess.com"]

[Event "Titled Tuesday Blitz May 25 2021"]
[White "Ponikarovsky, Alexey"]
[Black "Sihite, Chelsie Monica Ignesias"]
[WhiteFideId "4122887"]
[BlackFideId "7101198"]
[WhiteElo "1944"]
[BlackElo "2224"]
[Result "1-0"]
[Round "01"]
[TimeControl "180+1"]
[Date "2021.05.25"]
[WhiteClock "0:01:40"]
[BlackClock "0:00:53"]

1. e4 {[%clk 0:03:00]}  e5 {[%clk 0:02:59]} 2. d4 {[%clk 0:03:00]}  exd4 {[%clk 0:02:58]} 3. Nf3 {[%clk 0:03:00]}  Nc6 {[%clk 0:02:59]} 4. Bc4 {[%clk 0:03:00]}  Bc5 {[%clk 0:02:59]} 5. c3 {[%clk 0:03:00]}  Nf6 {[%clk 0:02:59]} 6. e5 {[%clk 0:03:00]}  d5 {[%clk 0:02:56]} 7. Bb5 {[%clk 0:02:59]}  Ne4 {[%clk 0:02:55]} 8. cxd4 {[%clk 0:02:58]}  Bb4+ {[%clk 0:02:54]} 9. Bd2 {[%clk 0:02:59]}  Nxd2 {[%clk 0:02:51]} 10. Nbxd2 {[%clk 0:03:00]}  O-O {[%clk 0:02:50]} 11. O-O {[%clk 0:02:57]}  Bg4 {[%clk 0:02:49]} 12. Bxc6 {[%clk 0:02:57]}  bxc6 {[%clk 0:02:49]} 13. Qc2 {[%clk 0:02:53]}  Rb8 {[%clk 0:02:31]} 14. b3 {[%clk 0:02:46]}  Bd7 {[%clk 0:02:17]} 15. Rac1 {[%clk 0:02:40]}  Ba3 {[%clk 0:02:16]} 16. Rb1 {[%clk 0:02:38]}  Qe7 {[%clk 0:02:09]} 17. h3 {[%clk 0:02:30]}  c5 {[%clk 0:02:05]} 18. dxc5 {[%clk 0:02:27]}  Bxc5 {[%clk 0:01:56]} 19. Rbc1 {[%clk 0:02:25]}  Bb6 {[%clk 0:01:55]} 20. Rfe1 {[%clk 0:02:18]}  c5 {[%clk 0:01:54]} 21. Nf1 {[%clk 0:02:18]}  Rbc8 {[%clk 0:01:50]} 22. Ne3 {[%clk 0:02:17]}  Be6 {[%clk 0:01:34]} 23. Nf5 {[%clk 0:02:17]}  Bxf5 {[%clk 0:01:26]} 24. Qxf5 {[%clk 0:02:18]}  Qe6 {[%clk 0:01:24]} 25. Qg5 {[%clk 0:02:16]}  h6 {[%clk 0:01:24]} 26. Qf4 {[%clk 0:02:13]}  c4 {[%clk 0:01:23]} 27. Nd4 {[%clk 0:02:11]}  Bxd4 {[%clk 0:01:19]} 28. Qxd4 {[%clk 0:02:12]}  cxb3 {[%clk 0:01:17]} 29. axb3 {[%clk 0:02:11]}  a6 {[%clk 0:01:17]} 30. Red1 {[%clk 0:02:08]}  Rxc1 {[%clk 0:01:14]} 31. Rxc1 {[%clk 0:02:09]}  Rb8 {[%clk 0:01:12]} 32. b4 {[%clk 0:02:06]}  g6 {[%clk 0:01:10]} 33. Rc5 {[%clk 0:02:03]}  Rb5 {[%clk 0:01:07]} 34. f4 {[%clk 0:01:59]}  Kh7 {[%clk 0:01:06]} 35. Kh2 {[%clk 0:01:56]}  h5 {[%clk 0:01:05]} 36. Rc7 {[%clk 0:01:52]}  Kg7 {[%clk 0:00:59]} 37. Rc5 {[%clk 0:01:52]}  h4 {[%clk 0:00:56]} 38. Rc7 {[%clk 0:01:45]}  Qf5 {[%clk 0:00:55]} 39. e6+ {[%clk 0:01:42]}  Kh6 {[%clk 0:00:53]} 40. Qh8# {[%clk 0:01:40]} 1-0


[Site "https://www.chess.com"]

[Event "Titled Tuesday Blitz May 25 2021"]
[White "Pridorozhni, Aleksei"]
[Black "Vaidya, Atulya"]
[WhiteFideId "4127870"]
[BlackFideId "2047713"]
[WhiteElo "2565"]
[BlackElo "2429"]
[Result "1-0"]
[Round "01"]
[TimeControl "180+1"]
[Date "2021.05.25"]
[WhiteClock "0:00:32"]
[BlackClock "0:00:44"]

1. e4 {[%clk 0:03:00]}  c6 {[%clk 0:02:56]} 2. Nc3 {[%clk 0:03:00]}  d5 {[%clk 0:02:57]} 3. Qe2 {[%clk 0:03:00]}  dxe4 {[%clk 0:02:56]} 4. Nxe4 {[%clk 0:03:01]}  e6 {[%clk 0:02:56]} 5. Nf3 {[%clk 0:03:00]}  Nd7 {[%clk 0:02:56]} 6. d4 {[%clk 0:03:00]}  Ngf6 {[%clk 0:02:56]} 7. c3 {[%clk 0:03:01]}  Nxe4 {[%clk 0:02:56]} 8. Qxe4 {[%clk 0:03:02]}  Nf6 {[%clk 0:02:56]} 9. Qc2 {[%clk 0:03:02]}  Be7 {[%clk 0:02:56]} 10. Bd3 {[%clk 0:03:02]}  Bd7 {[%clk 0:02:53]} 11. O-O {[%clk 0:03:00]}  O-O {[%clk 0:02:52]} 12. Bg5 {[%clk 0:02:55]}  h6 {[%clk 0:02:50]} 13. Bh4 {[%clk 0:02:55]}  Qb6 {[%clk 0:02:43]} 14. Ne5 {[%clk 0:02:50]}  Rad8 {[%clk 0:02:43]} 15. Rad1 {[%clk 0:02:32]}  Kh8 {[%clk 0:02:26]} 16. Qe2 {[%clk 0:02:19]}  Nd5 {[%clk 0:02:00]} 17. Bxe7 {[%clk 0:02:10]}  Nxe7 {[%clk 0:02:01]} 18. Qe4 {[%clk 0:02:05]}  g6 {[%clk 0:01:57]} 19. Qh4 {[%clk 0:01:59]}  Ng8 {[%clk 0:01:46]} 20. Bxg6 {[%clk 0:01:55]}  fxg6 {[%clk 0:01:39]} 21. Nxg6+ {[%clk 0:01:56]}  Kg7 {[%clk 0:01:39]} 22. Nxf8 {[%clk 0:01:50]}  Rxf8 {[%clk 0:01:40]} 23. Rd2 {[%clk 0:01:49]}  Be8 {[%clk 0:01:31]} 24. Re1 {[%clk 0:01:48]}  Bf7 {[%clk 0:01:31]} 25. h3 {[%clk 0:01:44]}  Qd8 {[%clk 0:01:24]} 26. Qxd8 {[%clk 0:01:41]}  Rxd8 {[%clk 0:01:25]} 27. f3 {[%clk 0:01:41]}  c5 {[%clk 0:01:24]} 28. Red1 {[%clk 0:01:40]}  cxd4 {[%clk 0:01:24]} 29. Rxd4 {[%clk 0:01:41]}  Rc8 {[%clk 0:01:24]} 30. Rd7 {[%clk 0:01:36]}  Rb8 {[%clk 0:01:24]} 31. Rc7 {[%clk 0:01:34]}  Nf6 {[%clk 0:01:24]} 32. c4 {[%clk 0:01:33]}  a6 {[%clk 0:01:23]} 33. Kf2 {[%clk 0:01:23]}  b5 {[%clk 0:01:19]} 34. c5 {[%clk 0:01:22]}  Nd5 {[%clk 0:01:19]} 35. Ra7 {[%clk 0:01:22]}  Rc8 {[%clk 0:01:18]} 36. Rc1 {[%clk 0:01:22]}  Nb4 {[%clk 0:01:10]} 37. Rd1 {[%clk 0:01:08]}  Nd5 {[%clk 0:01:08]} 38. b4 {[%clk 0:01:04]}  Rc6 {[%clk 0:01:00]} 39. a3 {[%clk 0:01:03]}  Kf6 {[%clk 0:01:00]} 40. Rd4 {[%clk 0:00:59]}  Bg6 {[%clk 0:01:00]} 41. f4 {[%clk 0:00:47]}  Bf5 {[%clk 0:01:01]} 42. g4 {[%clk 0:00:46]}  Bg6 {[%clk 0:01:01]} 43. Kg3 {[%clk 0:00:43]}  Bb1 {[%clk 0:00:47]} 44. h4 {[%clk 0:00:43]}  Bc2 {[%clk 0:00:45]} 45. Rd2 {[%clk 0:00:41]}  Bb1 {[%clk 0:00:44]} 46. Re2 {[%clk 0:00:41]}  Bc2 {[%clk 0:00:44]} 47. Rxc2 {[%clk 0:00:34]}  e5 {[%clk 0:00:43]} 48. fxe5+ {[%clk 0:00:33]}  Kxe5 {[%clk 0:00:44]} 49. Re2+ {[%clk 0:00:33]}  Kd4 {[%clk 0:00:44]} 50. Rd7 {[%clk 0:00:32]}  Kc4 {[%clk 0:00:44]} 51. Re4+ {[%clk 0:00:32]}  Kd3 {[%clk 0:00:44]} 52. Re5 {[%clk 0:00:32]} 1-0


[Site "https://www.chess.com"]

[Event "Titled Tuesday Blitz May 25 2021"]
[White "Remizov, Yaroslav"]
[Black "Manukian, Artak"]
[WhiteFideId "34134015"]
[BlackFideId "13301373"]
[WhiteElo "2367"]
[BlackElo "2374"]
[Result "1-0"]
[Round "01"]
[TimeControl "180+1"]
[Date "2021.05.25"]
[WhiteClock "0:02:00"]
[BlackClock "0:02:00"]

1. e4 {[%clk 0:02:59]}  c6 {[%clk 0:02:48]} 2. Nf3 {[%clk 0:02:58]}  d5 {[%clk 0:02:46]} 3. Nc3 {[%clk 0:02:57]}  Bg4 {[%clk 0:02:44]} 4. h3 {[%clk 0:02:52]}  Bxf3 {[%clk 0:02:44]} 5. Qxf3 {[%clk 0:02:53]}  Nf6 {[%clk 0:02:45]} 6. d3 {[%clk 0:02:45]}  e5 {[%clk 0:02:44]} 7. g4 {[%clk 0:02:44]}  Bb4 {[%clk 0:02:43]} 8. g5 {[%clk 0:02:42]}  dxe4 {[%clk 0:02:31]} 9. dxe4 {[%clk 0:02:36]}  Bxc3+ {[%clk 0:02:30]} 10. Qxc3 {[%clk 0:02:27]}  Nfd7 {[%clk 0:02:30]} 11. Be3 {[%clk 0:02:23]}  O-O {[%clk 0:02:29]} 12. O-O-O {[%clk 0:02:23]}  Qc7 {[%clk 0:02:25]} 13. h4 {[%clk 0:02:22]}  b5 {[%clk 0:02:21]} 14. h5 {[%clk 0:02:21]}  a5 {[%clk 0:02:14]} 15. Bxb5 {[%clk 0:02:15]}  a4 {[%clk 0:02:08]} 16. g6 {[%clk 0:02:12]}  fxg6 {[%clk 0:02:07]} 17. hxg6 {[%clk 0:02:11]}  h6 {[%clk 0:02:06]} 18. Bc4+ {[%clk 0:02:04]}  Kh8 {[%clk 0:02:06]} 19. Bxh6 {[%clk 0:02:05]}  gxh6 {[%clk 0:02:05]} 20. g7+ {[%clk 0:02:01]}  Kxg7 {[%clk 0:02:05]} 21. Qg3+ {[%clk 0:02:01]}  Kh7 {[%clk 0:02:00]} 22. Rxh6+ {[%clk 0:02:00]} 1-0


[Site "https://www.chess.com"]

[Event "Titled Tuesday Blitz May 25 2021"]
[White "Rodriguez, Santiago"]
[Black "Krivonosov, Oleg"]
[WhiteFideId "3000591"]
[BlackFideId "11600349"]
[WhiteElo "2256"]
[BlackElo "2469"]
[Result "0-1"]
[Round "01"]
[TimeControl "180+1"]
[Date "2021.05.25"]
[WhiteClock "0:00:10"]
[BlackClock "0:01:21"]

1. d4 {[%clk 0:01:37]}  d5 {[%clk 0:02:58]} 2. Bf4 {[%clk 0:01:37]}  Nf6 {[%clk 0:02:57]} 3. e3 {[%clk 0:01:37]}  e6 {[%clk 0:02:57]} 4. Nf3 {[%clk 0:01:35]}  Bd6 {[%clk 0:02:56]} 5. Bg3 {[%clk 0:01:35]}  c5 {[%clk 0:02:54]} 6. c3 {[%clk 0:01:35]}  Qc7 {[%clk 0:02:53]} 7. Nbd2 {[%clk 0:01:35]}  Nbd7 {[%clk 0:02:53]} 8. Bb5 {[%clk 0:01:34]}  O-O {[%clk 0:02:51]} 9. Qe2 {[%clk 0:01:29]}  e5 {[%clk 0:02:49]} 10. Bxd7 {[%clk 0:01:28]}  Nxd7 {[%clk 0:02:47]} 11. dxe5 {[%clk 0:01:29]}  Nxe5 {[%clk 0:02:46]} 12. O-O {[%clk 0:01:29]}  Bg4 {[%clk 0:02:42]} 13. Bxe5 {[%clk 0:01:26]}  Bxe5 {[%clk 0:02:41]} 14. h3 {[%clk 0:01:26]}  Bxf3 {[%clk 0:02:18]} 15. Nxf3 {[%clk 0:00:56]}  Bf6 {[%clk 0:02:17]} 16. Rad1 {[%clk 0:00:56]}  Rfd8 {[%clk 0:02:15]} 17. Rd2 {[%clk 0:00:54]}  Rd6 {[%clk 0:02:13]} 18. Rfd1 {[%clk 0:00:55]}  Rad8 {[%clk 0:02:13]} 19. Qd3 {[%clk 0:00:44]}  g6 {[%clk 0:02:08]} 20. b4 {[%clk 0:00:32]}  b6 {[%clk 0:02:02]} 21. h4 {[%clk 0:00:32]}  h5 {[%clk 0:02:00]} 22. g3 {[%clk 0:00:31]}  Kg7 {[%clk 0:01:59]} 23. Kg2 {[%clk 0:00:31]}  Qc6 {[%clk 0:01:55]} 24. b5 {[%clk 0:00:31]}  Qc7 {[%clk 0:01:50]} 25. a4 {[%clk 0:00:27]}  Qe7 {[%clk 0:01:46]} 26. Qc2 {[%clk 0:00:22]}  Qe6 {[%clk 0:01:41]} 27. c4 {[%clk 0:00:20]}  d4 {[%clk 0:01:37]} 28. exd4 {[%clk 0:00:20]}  Bxd4 {[%clk 0:01:37]} 29. Nxd4 {[%clk 0:00:18]}  Rxd4 {[%clk 0:01:36]} 30. Rxd4 {[%clk 0:00:18]}  cxd4 {[%clk 0:01:36]} 31. c5 {[%clk 0:00:18]}  Qd5+ {[%clk 0:01:35]} 32. Kh2 {[%clk 0:00:16]}  Qxc5 {[%clk 0:01:34]} 33. Qe4 {[%clk 0:00:14]}  d3 {[%clk 0:01:24]} 34. Rxd3 {[%clk 0:00:12]}  Qxf2+ {[%clk 0:01:23]} 35. Kh3 {[%clk 0:00:10]}  Qf1+ {[%clk 0:01:22]} 36. Kh2 {[%clk 0:00:10]}  Qxd3 {[%clk 0:01:21]} 0-1


[Site "https://www.chess.com"]

[Event "Titled Tuesday Blitz May 25 2021"]
[White "Rustemov, Alexander"]
[Black "Buchenau, Frank"]
[WhiteFideId "4119002"]
[BlackFideId "4604350"]
[WhiteElo "2710"]
[BlackElo "2255"]
[Result "1-0"]
[Round "01"]
[TimeControl "180+1"]
[Date "2021.05.25"]
[WhiteClock "0:00:14"]
[BlackClock "0:00:02"]

1. d4 {[%clk 0:03:00]}  e6 {[%clk 0:02:59]} 2. c4 {[%clk 0:02:58]}  Nf6 {[%clk 0:02:59]} 3. Nf3 {[%clk 0:02:57]}  b6 {[%clk 0:02:59]} 4. a3 {[%clk 0:02:56]}  Ba6 {[%clk 0:02:56]} 5. e3 {[%clk 0:02:54]}  d5 {[%clk 0:02:56]} 6. Nbd2 {[%clk 0:02:52]}  Be7 {[%clk 0:02:55]} 7. Bd3 {[%clk 0:02:50]}  O-O {[%clk 0:02:54]} 8. O-O {[%clk 0:02:49]}  c5 {[%clk 0:02:51]} 9. b3 {[%clk 0:02:40]}  Nbd7 {[%clk 0:02:48]} 10. Bb2 {[%clk 0:02:39]}  Rc8 {[%clk 0:02:34]} 11. Qe2 {[%clk 0:02:34]}  Qc7 {[%clk 0:02:31]} 12. Rfc1 {[%clk 0:02:16]}  Qb8 {[%clk 0:02:30]} 13. a4 {[%clk 0:02:02]}  Bb7 {[%clk 0:02:13]} 14. a5 {[%clk 0:02:02]}  Ne4 {[%clk 0:02:06]} 15. axb6 {[%clk 0:01:57]}  axb6 {[%clk 0:02:05]} 16. cxd5 {[%clk 0:01:53]}  exd5 {[%clk 0:01:51]} 17. h3 {[%clk 0:01:40]}  Rfe8 {[%clk 0:01:49]} 18. Bb5 {[%clk 0:01:39]}  Bc6 {[%clk 0:01:31]} 19. Bxc6 {[%clk 0:01:38]}  Rxc6 {[%clk 0:01:31]} 20. Nxe4 {[%clk 0:01:39]}  dxe4 {[%clk 0:01:30]} 21. Ne5 {[%clk 0:01:31]}  Nxe5 {[%clk 0:01:28]} 22. dxe5 {[%clk 0:01:32]}  Rg6 {[%clk 0:00:51]} 23. Qc4 {[%clk 0:01:29]}  Qc8 {[%clk 0:00:49]} 24. Kf1 {[%clk 0:01:26]}  Qf5 {[%clk 0:00:46]} 25. Rd1 {[%clk 0:01:09]}  Bh4 {[%clk 0:00:43]} 26. Qe2 {[%clk 0:01:08]}  h5 {[%clk 0:00:33]} 27. Ra7 {[%clk 0:01:06]}  Rd8 {[%clk 0:00:24]} 28. Rxd8+ {[%clk 0:00:57]}  Bxd8 {[%clk 0:00:25]} 29. Ra8 {[%clk 0:00:55]}  Qd7 {[%clk 0:00:24]} 30. Qxh5 {[%clk 0:00:43]}  Re6 {[%clk 0:00:11]} 31. Qe2 {[%clk 0:00:40]}  Re8 {[%clk 0:00:09]} 32. Kg1 {[%clk 0:00:35]}  Qd3 {[%clk 0:00:07]} 33. Qxd3 {[%clk 0:00:34]}  exd3 {[%clk 0:00:08]} 34. Kf1 {[%clk 0:00:31]}  Kf8 {[%clk 0:00:06]} 35. Ke1 {[%clk 0:00:30]}  b5 {[%clk 0:00:04]} 36. Kd2 {[%clk 0:00:27]}  c4 {[%clk 0:00:03]} 37. f4 {[%clk 0:00:17]}  Be7 {[%clk 0:00:01]} 38. Rxe8+ {[%clk 0:00:15]}  Kxe8 {[%clk 0:00:02]} 39. bxc4 {[%clk 0:00:14]} 1-0


[Site "https://www.chess.com"]

[Event "Titled Tuesday Blitz May 25 2021"]
[White "Sadhwani, Raunak"]
[Black "Garcia, Gabriel Gonzaga"]
[WhiteFideId "35093487"]
[BlackFideId "2138956"]
[WhiteElo "2514"]
[BlackElo "2240"]
[Result "1-0"]
[Round "01"]
[TimeControl "180+1"]
[Date "2021.05.25"]
[WhiteClock "0:01:09"]
[BlackClock "0:00:20"]

1. b3 {[%clk 0:02:57]}  e5 {[%clk 0:02:59]} 2. Bb2 {[%clk 0:02:57]}  Nc6 {[%clk 0:03:00]} 3. c4 {[%clk 0:02:57]}  Nf6 {[%clk 0:03:00]} 4. Nf3 {[%clk 0:02:57]}  Bc5 {[%clk 0:02:35]} 5. d3 {[%clk 0:02:19]}  O-O {[%clk 0:02:35]} 6. e3 {[%clk 0:02:19]}  e4 {[%clk 0:02:22]} 7. dxe4 {[%clk 0:02:18]}  Nxe4 {[%clk 0:02:23]} 8. Nbd2 {[%clk 0:02:14]}  d5 {[%clk 0:02:03]} 9. cxd5 {[%clk 0:02:14]}  Qxd5 {[%clk 0:02:03]} 10. Bc4 {[%clk 0:02:14]}  Qf5 {[%clk 0:01:57]} 11. Nxe4 {[%clk 0:02:04]}  Qxe4 {[%clk 0:01:58]} 12. O-O {[%clk 0:02:05]}  Rd8 {[%clk 0:01:56]} 13. Bxf7+ {[%clk 0:02:02]}  Kf8 {[%clk 0:01:28]} 14. Qc1 {[%clk 0:01:53]}  Bd6 {[%clk 0:01:16]} 15. Qc3 {[%clk 0:01:45]}  Qg4 {[%clk 0:01:12]} 16. h3 {[%clk 0:01:45]}  Bb4 {[%clk 0:01:05]} 17. Qxc6 {[%clk 0:01:33]}  bxc6 {[%clk 0:00:54]} 18. hxg4 {[%clk 0:01:33]}  Kxf7 {[%clk 0:00:55]} 19. Ne5+ {[%clk 0:01:34]}  Ke6 {[%clk 0:00:50]} 20. Nxc6 {[%clk 0:01:35]}  Rd2 {[%clk 0:00:50]} 21. Nxb4 {[%clk 0:01:32]}  Rxb2 {[%clk 0:00:50]} 22. Rfc1 {[%clk 0:01:32]}  a5 {[%clk 0:00:45]} 23. Nd3 {[%clk 0:01:32]}  Rd2 {[%clk 0:00:46]} 24. Nf4+ {[%clk 0:01:26]}  Kf6 {[%clk 0:00:46]} 25. Rc6+ {[%clk 0:01:22]}  Rd6 {[%clk 0:00:43]} 26. Nh5+ {[%clk 0:01:21]}  Kg6 {[%clk 0:00:38]} 27. Rxd6+ {[%clk 0:01:17]}  cxd6 {[%clk 0:00:39]} 28. f3 {[%clk 0:01:16]}  a4 {[%clk 0:00:37]} 29. Rd1 {[%clk 0:01:16]}  Ra6 {[%clk 0:00:32]} 30. b4 {[%clk 0:01:16]}  a3 {[%clk 0:00:32]} 31. Nf4+ {[%clk 0:01:15]}  Kf6 {[%clk 0:00:32]} 32. b5 {[%clk 0:01:15]}  Ra5 {[%clk 0:00:21]} 33. Rxd6+ {[%clk 0:01:15]}  Ke7 {[%clk 0:00:21]} 34. Rd3 {[%clk 0:01:11]}  Be6 {[%clk 0:00:18]} 35. Nxe6 {[%clk 0:01:11]}  Kxe6 {[%clk 0:00:19]} 36. Rb3 {[%clk 0:01:11]}  Kd6 {[%clk 0:00:20]} 37. b6 {[%clk 0:01:09]} 1-0


[Site "https://www.chess.com"]